fUSD/lending_fUSD_20260111
["ID","MTS","AMOUNT","RATE_DAILY","PERIOD"]
[401390190,1768174246951,-174.887374,0.00017788,2]
[401390191,1768174246960,-380.840895,0.00017788,2]
[401390192,1768174246969,-380.840895,0.00017788,2]
[401390193,1768174246979,-151.0,0.00017788,2]
[401390194,1768174246988,-380.840895,0.00017788,2]
[401390195,1768174246997,-380.840895,0.00017788,2]
[401390196,1768174247006,-151.0,0.00017788,2]
[401390197,1768174247015,-1330.670353,0.00017788,2]
[401390198,1768174247024,-1330.670353,0.00017788,2]
[401390199,1768174247034,-151.0,0.00017788,2]
[401390200,1768174247043,-1330.670353,0.00017788,2]
[401390201,1768174247052,-1330.670353,0.00017788,2]
[401390202,1768174247061,-151.0,0.00017788,2]
[401390203,1768174247071,-662.145373,0.00017788,2]
[401390204,1768174247080,-151.0,0.00017788,2]
[401390205,1768174247089,-662.145373,0.00017788,2]
[401390206,1768174247099,-206.516559,0.00017788,2]
[401390207,1768174247107,-662.145373,0.00017788,2]
[401390208,1768174247116,-662.145373,0.00017788,2]
[401390209,1768174247125,-151.0,0.00017788,2]
[401390210,1768174247134,-151.0,0.00017788,2]
[401390211,1768174247145,-151.0,0.00017788,2]
[401390212,1768174247154,-151.0,0.00017788,2]
[401390213,1768174247163,-151.0,0.00017788,2]
[401390214,1768174247172,-151.0,0.00017788,2]
[401390215,1768174247182,-151.0,0.00017788,2]
[401390216,1768174247191,-151.0,0.00017788,2]
[401390217,1768174247200,-151.0,0.00017788,2]
[401390218,1768174247209,-151.0,0.00017788,2]
[401390219,1768174247219,-617.330805,0.00017788,2]
[401390220,1768174247228,-151.0,0.00017788,2]
[401390221,1768174247237,-617.330805,0.00017788,2]
[401390222,1768174247246,-617.330805,0.00017788,2]
[401390223,1768174247255,-617.330805,0.00017788,2]
[401390224,1768174247264,-151.0,0.00017788,2]
[401390225,1768174247273,-151.0,0.00017788,2]
[401390226,1768174247283,-151.0,0.00017788,2]
[401390227,1768174247292,-151.0,0.00017788,2]
[401390228,1768174247301,-160.818495,0.00017788,2]
[401390229,1768174247310,-4700.883777,0.00017788,2]
[401390230,1768174247319,-151.0,0.00017788,2]
[401390231,1768174247329,-151.0,0.00017788,2]
[401390232,1768174247338,-4700.883777,0.00017788,2]
[401390233,1768174247347,-4700.883777,0.00017788,2]
[401390234,1768174247357,-4700.883777,0.00017788,2]
[401390235,1768174247366,-790.895146,0.00017788,2]
[401390236,1768174247375,-387.144329,0.00017788,2]
[401390237,1768174247385,-387.144329,0.00017788,2]
[401390238,1768174247398,-790.895146,0.00017788,2]
[401390239,1768174247408,-151.0,0.00017788,2]
[401390240,1768174247418,-387.144329,0.00017788,2]
[401390241,1768174247427,-790.895146,0.00017788,2]
[401390242,1768174247437,-151.0,0.00017788,2]
[401390243,1768174247446,-387.144329,0.00017788,2]
[401390244,1768174247456,-265.427214,0.00017788,2]
[401390245,1768174247465,-790.895146,0.00017788,2]
[401390246,1768174247476,-151.0,0.00017788,2]
[401390247,1768174247487,-265.427214,0.00017788,2]
[401390248,1768174247496,-265.427214,0.00017788,2]
[401390249,1768174247505,-656.27507,0.00017788,2]
[401390250,1768174247517,-265.427214,0.00017788,2]
[401390251,1768174247527,-656.27507,0.00017788,2]
[401390252,1768174247536,-656.27507,0.00017788,2]
[401390253,1768174247545,-656.27507,0.00017788,2]
[401390254,1768174247555,-151.0,0.00017788,2]
[401390255,1768174247565,-151.0,0.00017788,2]
[401390256,1768174247575,-151.0,0.00017788,2]
[401390257,1768174247584,-780.949003,0.00017788,2]
[401390258,1768174247595,-151.0,0.00017788,2]
[401390259,1768174247605,-151.0,0.00017788,2]
[401390260,1768174247615,-780.949003,0.00017788,2]
[401390261,1768174247624,-151.0,0.00017788,2]
[401390262,1768174247634,-151.0,0.00017788,2]
[401390263,1768174247646,-780.949003,0.00017788,2]
[401390264,1768174247656,-151.0,0.00017788,2]
[401390265,1768174247665,-151.0,0.00017788,2]
[401390266,1768174247675,-151.0,0.00017788,2]
[401390267,1768174247685,-780.949003,0.00017788,2]
[401390268,1768174247694,-151.0,0.00017788,2]
[401390269,1768174247703,-170.500208,0.00017788,2]
[401390270,1768174247713,-170.500208,0.00017788,2]
[401390271,1768174247723,-170.500208,0.00017788,2]
[401390272,1768174247732,-170.500208,0.00017788,2]
[401390273,1768174247741,-150.0,0.00017788,2]
[401390274,1768174247750,-151.0,0.00017788,2]
[401390275,1768174247760,-189.479204,0.00017788,2]
[401390276,1768174247770,-151.0,0.00017788,2]
[401390277,1768174247779,-246.453607,0.00017788,2]
[401390278,1768174247789,-151.0,0.00017788,2]
[401390279,1768174247799,-246.453607,0.00017788,2]
[401390280,1768174247809,-151.0,0.00017788,2]
[401390281,1768174247818,-716.799137,0.00017788,2]
[401390282,1768174247827,-151.0,0.00017788,2]
[401390283,1768174247836,-151.0,0.00017788,2]
[401390284,1768174247845,-246.453607,0.00017788,2]
[401390285,1768174247855,-716.799137,0.00017788,2]
[401390286,1768174247863,-246.453607,0.00017788,2]
[401390287,1768174247873,-716.799137,0.00017788,2]
[401390288,1768174247882,-716.799137,0.00017788,2]
[401390289,1768174247893,-151.0,0.00017788,2]
[401390291,1768174247902,-151.0,0.00017788,2]
[401390293,1768174247911,-151.0,0.00017788,2]
[401390294,1768174247919,-929.163466,0.00017788,2]
[401390295,1768174247929,-151.0,0.00017788,2]
[401390296,1768174247938,-929.163466,0.00017788,2]
[401390297,1768174247948,-151.0,0.00017788,2]
[401390298,1768174247956,-425.048909,0.00017788,2]
[401390299,1768174247966,-506.865865,0.00017788,2]
[401390300,1768174247975,-1026.274913,0.00017788,2]
[401390301,1768174247984,-174.000186,0.00017788,2]
[401390302,1768174247994,-425.048909,0.00017788,2]
[401390303,1768174248003,-506.865865,0.00017788,2]
[401390304,1768174248013,-1026.274913,0.00017788,2]
[401390305,1768174248022,-151.0,0.00017788,2]
[401390306,1768174248031,-425.048909,0.00017788,2]
[401390307,1768174248041,-174.000186,0.00017788,2]
[401390308,1768174248050,-506.865865,0.00017788,2]
[401390309,1768174248059,-1026.274913,0.00017788,2]
[401390310,1768174248068,-929.163466,0.00017788,2]
[401390311,1768174248078,-174.000186,0.00017788,2]
[401390312,1768174248087,-425.048909,0.00017788,2]
[401390313,1768174248096,-506.865865,0.00017788,2]
[401390314,1768174248105,-151.0,0.00017788,2]
[401390315,1768174248115,-929.163466,0.00017788,2]
[401390316,1768174248124,-1026.274913,0.00017788,2]
[401390317,1768174248133,-174.000186,0.00017788,2]
[401390318,1768174248143,-151.0,0.00017788,2]
[401390319,1768174248152,-202.895955,0.00017788,2]
[401390320,1768174248161,-161.879998,0.00017788,2]
[401390321,1768174248170,-151.0,0.00017788,2]
[401390322,1768174248179,-1965.222408,0.00017788,2]
[401390323,1768174248189,-164.943241,0.00017788,2]
[401390324,1768174248198,-347.443825,0.00017788,2]
[401390325,1768174248207,-1965.222408,0.00017788,2]
[401390326,1768174248216,-164.943241,0.00017788,2]
[401390327,1768174248225,-347.443825,0.00017788,2]
[401390328,1768174248234,-1965.222408,0.00017788,2]
[401390329,1768174248243,-192.571095,0.00017788,2]
[401390330,1768174248252,-164.943241,0.00017788,2]
[401390331,1768174248261,-151.0,0.00017788,2]
[401390332,1768174248271,-1965.222408,0.00017788,2]
[401390333,1768174248280,-347.443825,0.00017788,2]
[401390334,1768174248290,-192.571095,0.00017788,2]
[401390335,1768174248300,-164.943241,0.00017788,2]
[401390336,1768174248309,-347.443825,0.00017788,2]
[401390337,1768174248318,-192.571095,0.00017788,2]
[401390338,1768174248327,-192.571095,0.00017788,2]
[401390339,1768174248336,-175.360482,0.00017788,2]
[401390340,1768174248346,-1060.855532,0.00017788,2]
[401390341,1768174248355,-1060.855532,0.00017788,2]
[401390342,1768174248365,-2068.70979,0.00017788,2]
[401390343,1768174248374,-1060.855532,0.00017788,2]
[401390344,1768174248384,-2068.70979,0.00017788,2]
[401390345,1768174248394,-1060.855532,0.00017788,2]
[401390346,1768174248403,-2068.70979,0.00017788,2]
[401390347,1768174248412,-2068.70979,0.00017788,2]
[401390348,1768174248422,-151.0,0.00017788,2]
[401390349,1768174248431,-151.0,0.00017788,2]
[401390350,1768174248440,-681.018501,0.00017788,2]
[401390351,1768174248449,-681.018501,0.00017788,2]
[401390352,1768174248458,-499.566603,0.00017788,2]
[401390353,1768174248468,-681.018501,0.00017788,2]
[401390354,1768174248477,-681.018501,0.00017788,2]
[401390355,1768174248486,-499.566603,0.00017788,2]
[401390356,1768174248496,-499.566603,0.00017788,2]
[401390357,1768174248505,-151.0,0.00017788,2]
[401390358,1768174248517,-499.566603,0.00017788,2]
[401390359,1768174248527,-376.100976,0.00017788,2]
[401390360,1768174248537,-376.100976,0.00017788,2]
[401390361,1768174248547,-376.100976,0.00017788,2]
[401390362,1768174248556,-151.0,0.00017788,2]
[401390363,1768174248566,-376.100976,0.00017788,2]
[401390364,1768174248576,-2061.870797,0.00017788,2]
[401390365,1768174248586,-151.0,0.00017788,2]
[401390366,1768174248596,-2061.870797,0.00017788,2]
[401390367,1768174248606,-2061.870797,0.00017788,2]
[401390368,1768174248615,-151.0,0.00017788,2]
[401390369,1768174248624,-2061.870797,0.00017788,2]
[401390370,1768174248634,-151.0,0.00017788,2]
[401390371,1768174248645,-151.0,0.00017788,2]
[401390372,1768174248654,-151.0,0.00017788,2]
[401390373,1768174248664,-151.0,0.00017788,2]
[401390374,1768174248674,-151.0,0.00017788,2]
[401390375,1768174248683,-151.0,0.00017788,2]
[401390376,1768174248693,-151.0,0.00017788,2]
[401390377,1768174248703,-151.0,0.00017788,2]
[401390378,1768174248712,-151.0,0.00017788,2]
[401390379,1768174248722,-151.0,0.00017788,2]
[401390380,1768174248731,-151.0,0.00017788,2]
[401390381,1768174248741,-270260.71760968,0.00017788,2]
[401390382,1768174248751,-381688.79385485,0.00017788,2]
[401390383,1768174248760,-493897.2588,0.00017788,2]
[401390384,1768174248770,-393.37545908,0.00017788,2]
[401390385,1768174248780,-150.0,0.00017789,2]
[401390386,1768174248790,-1000.0,0.00017793,2]
[401390387,1768174248801,-180.24,0.00017794,2]
[401390388,1768174248811,-25000.0,0.00017794,3]
[401390389,1768174248821,-239.22742976,0.00017795,3]
[401390390,1768174248831,-1000.0,0.000178,2]
[401390391,1768174248841,-14440.20798762,0.000178,2]
[401390392,1768174248850,-1300.0,0.000178,6]
[401390393,1768174248860,-326.1,0.00017802,2]
[401390394,1768174248869,-25000.0,0.00017803,3]
[401390395,1768174248880,-1000.0,0.00017804,2]
[401390396,1768174248889,-156.587,0.00017807,2]
[401390397,1768174248901,-150.0,0.00017809,2]
[401390398,1768174248910,-25000.0,0.00017812,3]
[401390399,1768174248920,-1279.03476,0.0001782,2]
[401390400,1768174248929,-1279.03477,0.0001782,2]
[401390401,1768174248938,-25000.0,0.00017821,3]
[401390402,1768174248947,-25000.0,0.0001783,3]
[401390403,1768174248956,-150.0,0.0001783,2]
[401390404,1768174248965,-1279.03477,0.0001783,2]
[401390405,1768174248975,-1000.0,0.00017832,2]
[401390406,1768174248984,-1000.0,0.00017834,2]
[401390407,1768174248993,-152.04553,0.00017838,2]
[401390408,1768174249003,-151.0,0.00017838,2]
[401390409,1768174249012,-151.0,0.00017838,2]
[401390410,1768174249021,-151.0,0.00017838,2]
[401390411,1768174249031,-151.0,0.00017838,2]
[401390412,1768174249040,-151.0,0.00017838,2]
[401390413,1768174249049,-170.438842,0.00017838,2]
[401390414,1768174249058,-170.438842,0.00017838,2]
[401390415,1768174249068,-170.438842,0.00017838,2]
[401390416,1768174249077,-170.438842,0.00017838,2]
[401390417,1768174249086,-151.0,0.00017838,2]
[401390418,1768174249096,-151.0,0.00017838,2]
[401390419,1768174249105,-151.0,0.00017838,2]
[401390420,1768174249114,-151.0,0.00017838,2]
[401390421,1768174249123,-151.0,0.00017838,2]
[401390422,1768174249133,-754.789807,0.00017838,2]
[401390423,1768174249143,-754.789807,0.00017838,2]
[401390424,1768174249153,-151.0,0.00017838,2]
[401390425,1768174249163,-754.789807,0.00017838,2]
[401390426,1768174249172,-164.228074,0.00017838,2]
[401390427,1768174249181,-754.789807,0.00017838,2]
[401390428,1768174249190,-151.0,0.00017838,2]
[401390429,1768174249200,-151.0,0.00017838,2]
[401390430,1768174249211,-200.294492,0.00017838,2]
[401390431,1768174249220,-151.0,0.00017838,2]
[401390432,1768174249230,-243.507281,0.00017838,2]
[401390433,1768174249239,-151.0,0.00017838,2]
[401390434,1768174249249,-151.0,0.00017838,2]
[401390435,1768174249258,-1035.045953,0.00017838,2]
[401390436,1768174249268,-151.0,0.00017838,2]
[401390437,1768174249277,-1035.045953,0.00017838,2]
[401390438,1768174249286,-194.799638,0.00017838,2]
[401390439,1768174249296,-206.837688,0.00017838,2]
[401390440,1768174249305,-1035.045953,0.00017838,2]
[401390441,1768174249315,-151.0,0.00017838,2]
[401390442,1768174249324,-194.799638,0.00017838,2]
[401390443,1768174249334,-206.837688,0.00017838,2]
[401390444,1768174249343,-1035.045953,0.00017838,2]
[401390445,1768174249353,-151.0,0.00017838,2]
[401390446,1768174249364,-151.0,0.00017838,2]
[401390447,1768174249373,-206.837688,0.00017838,2]
[401390448,1768174249382,-194.799638,0.00017838,2]
[401390449,1768174249393,-151.0,0.00017838,2]
[401390450,1768174249403,-194.799638,0.00017838,2]
[401390451,1768174249412,-206.837688,0.00017838,2]
[401390452,1768174249421,-811.260622,0.00017838,2]
[401390453,1768174249430,-811.260622,0.00017838,2]
[401390454,1768174249440,-811.260622,0.00017838,2]
[401390455,1768174249450,-811.260622,0.00017838,2]
[401390456,1768174249459,-25000.0,0.00017838,3]
[401390457,1768174249468,-1266.7,0.00017844,2]
[401390458,1768174249478,-393.37545908,0.00017844,2]
[401390459,1768174249487,-1000.0,0.00017847,2]
[401390460,1768174249496,-660.81,0.00017847,2]
[401390461,1768174249505,-25000.0,0.00017847,3]
[401390462,1768174249516,-150.0,0.0001785,2]
[401390463,1768174249528,-25000.0,0.00017856,3]
[401390464,1768174249538,-200.0,0.00017856,2]
[401390465,1768174249547,-1279.03477,0.0001786,2]
[401390466,1768174249556,-25000.0,0.00017865,3]
[401390467,1768174249566,-1000.0,0.00017865,2]
[401390468,1768174249575,-1000.0,0.00017869,2]
[401390469,1768174249584,-150.0,0.0001787,2]
[401390470,1768174249595,-25000.0,0.00017874,3]
[401390471,1768174249604,-6763.49635925,0.00017876,2]
[401390472,1768174249613,-1279.03477,0.0001788,2]
[401390473,1768174249622,-25000.0,0.00017882,3]
[401390474,1768174249631,-1000.0,0.00017884,2]
[401390475,1768174249641,-177.7458724,0.00017888,3]
[401390476,1768174249650,-150.0,0.00017891,2]
[401390477,1768174249659,-25000.0,0.00017891,3]
[401390478,1768174249669,-157.14731633,0.00017892,2]
[401390479,1768174249678,-314.07,0.00017895,2]
[401390480,1768174249688,-1000.0,0.00017895,2]
[401390481,1768174249697,-502.72853522,0.000179,2]
[401390482,1768174249707,-25000.0,0.000179,3]
[401390483,1768174249718,-331.10906462,0.000179,2]
[401390484,1768174249727,-2671.3578253,0.000179,2]
[401390485,1768174249736,-1899.0,0.000179,6]
[401390486,1768174249746,-155.85224163,0.000179,2]
[401390487,1768174249755,-996.7379523,0.000179,2]
[401390488,1768174249765,-996.73795225,0.000179,2]
[401390489,1768174249774,-996.73795225,0.000179,2]
[401390490,1768174249783,-996.73795225,0.000179,2]
[401390491,1768174249793,-4280.80443197,0.000179,3]
[401390492,1768174249802,-996.73795225,0.000179,2]
[401390493,1768174249812,-239.22742976,0.000179,3]
[401390494,1768174249822,-996.73795225,0.000179,2]
[401390495,1768174249831,-996.73795225,0.000179,2]
[401390496,1768174249840,-996.73795225,0.000179,2]
[401390497,1768174249849,-996.73795225,0.000179,2]
[401390498,1768174249858,-996.73795225,0.000179,2]
[401390499,1768174249867,-996.73795225,0.000179,2]
[401390500,1768174249877,-996.73795225,0.000179,2]
[401390501,1768174249887,-996.73795225,0.000179,2]
[401390502,1768174249897,-996.73795225,0.000179,2]
[401390503,1768174249906,-996.73795225,0.000179,2]
[401390504,1768174249915,-996.73795225,0.000179,2]
[401390505,1768174249924,-996.73795225,0.000179,2]
[401390506,1768174249934,-996.73795225,0.000179,2]
[401390507,1768174249943,-996.73795225,0.000179,2]
[401390508,1768174249952,-996.73795225,0.000179,2]
[401390509,1768174249961,-393.37545908,0.000179,2]
[401390510,1768174249971,-7624.0,0.000179,2]
[401390511,1768174249980,-1000.0,0.00017904,2]
[401390512,1768174249990,-1000.0,0.00017905,2]
[401390513,1768174249999,-1000.0,0.00017907,2]
[401390514,1768174250009,-1279.03477,0.0001791,2]
[401390515,1768174250018,-150.0,0.00017911,2]
[401390516,1768174250027,-150.0,0.00017911,2]
[401390517,1768174250036,-799.0754554,0.0001792,2]
[401390518,1768174250046,-1266.7,0.00017922,2]
[401390519,1768174250055,-168.0,0.00017924,2]
[401390520,1768174250065,-150.0,0.00017932,2]
[401390521,1768174250075,-1000.0,0.00017933,2]
[401390522,1768174250084,-1000.0,0.00017937,2]
[401390523,1768174250094,-3292.0,0.0001794,2]
[401390524,1768174250103,-1000.0,0.00017941,2]
[401390525,1768174250113,-1000.0,0.00017942,2]
[401390526,1768174250122,-1000.0,0.00017943,2]
[401390527,1768174250132,-1000.0,0.0001795,2]
[401390528,1768174250142,-150.0,0.00017952,2]
[401390529,1768174250151,-216.54,0.00017955,2]
[401390530,1768174250160,-150.0,0.00017973,2]
[401390531,1768174250170,-150.0,0.00017973,2]
[401390532,1768174250179,-150.0,0.00017973,2]
[401390533,1768174250189,-204.20092005,0.00017973,2]
[401390534,1768174250198,-150.0,0.00017973,2]
[401390535,1768174250208,-150.0,0.00017973,2]
[401390536,1768174250217,-150.0,0.00017973,2]
[401390537,1768174250227,-150.00000001,0.00017973,2]
[401390538,1768174250236,-150.0,0.00017973,2]
[401390539,1768174250246,-247.12115075,0.00017973,2]
[401390540,1768174250255,-150.0,0.00017973,2]
[401390541,1768174250264,-150.0,0.00017973,2]
[401390542,1768174250274,-500.0,0.00017973,2]
[401390543,1768174250283,-500.0,0.00017973,2]
[401390544,1768174250568,-500.0,0.00017973,2]
[401390545,1768174250580,-500.0,0.00017973,2]
[401390546,1768174250592,-286.84842062,0.00017973,2]
[401390547,1768174250602,-500.0,0.00017973,2]
[401390548,1768174250612,-500.0,0.00017973,2]
[401390549,1768174250622,-500.0,0.00017973,2]
[401390550,1768174250631,-515.27642925,0.00017973,2]
[401390551,1768174250641,-168.53464326,0.00017973,2]
[401390552,1768174250650,-195.06667749,0.00017973,2]
[401390553,1768174250660,-500.26639526,0.00017973,2]
[401390554,1768174250670,-500.18733725,0.00017973,2]
[401390555,1768174250679,-500.0,0.00017973,2]
[401390556,1768174250689,-500.0,0.00017973,2]
[401390557,1768174250699,-579.17548492,0.00017973,2]
[401390558,1768174250708,-500.0,0.00017973,2]
[401390559,1768174250717,-500.0,0.00017973,2]
[401390560,1768174250727,-501.05787152,0.00017973,2]
[401390561,1768174250737,-500.0,0.00017973,2]
[401390562,1768174250747,-500.0,0.00017973,2]
[401390563,1768174250756,-500.0,0.00017973,2]
[401390564,1768174250766,-500.0,0.00017973,2]
[401390565,1768174250776,-500.0,0.00017973,2]
[401390566,1768174250786,-500.0,0.00017973,2]
[401390567,1768174250795,-500.0,0.00017973,2]
[401390568,1768174250805,-500.0,0.00017973,2]
[401390569,1768174250814,-279.31517583,0.00017973,2]
[401390570,1768174250823,-500.0,0.00017973,2]
[401390571,1768174250833,-500.0,0.00017973,2]
[401390572,1768174250842,-429.09119552,0.00017973,2]
[401390573,1768174250852,-578.02071049,0.00017973,2]
[401390574,1768174250862,-500.0,0.00017973,2]
[401390575,1768174250871,-500.0,0.00017973,2]
[401390576,1768174250881,-500.0,0.00017973,2]
[401390577,1768174250890,-500.0,0.00017973,2]
[401390578,1768174250900,-500.0,0.00017973,2]
[401390579,1768174250909,-165.4000895,0.00017973,2]
[401390580,1768174250918,-500.0,0.00017973,2]
[401390581,1768174250927,-500.0,0.00017973,2]
[401390582,1768174250937,-500.0,0.00017973,2]
[401390583,1768174250946,-500.0,0.00017973,2]
[401390584,1768174250956,-500.0,0.00017973,2]
[401390585,1768174250966,-500.0,0.00017973,2]
[401390586,1768174250976,-500.0,0.00017973,2]
[401390587,1768174250986,-500.0,0.00017973,2]
[401390588,1768174250995,-500.0,0.00017973,2]
[401390589,1768174251004,-500.0,0.00017973,2]
[401390590,1768174251014,-500.0,0.00017973,2]
[401390591,1768174251024,-500.0,0.00017973,2]
[401390592,1768174251038,-500.0,0.00017973,2]
[401390593,1768174251049,-500.0,0.00017973,2]
[401390594,1768174251059,-500.0,0.00017973,2]
[401390595,1768174251068,-500.0,0.00017973,2]
[401390596,1768174251078,-555.025369,0.00017973,2]
[401390597,1768174251087,-500.0,0.00017973,2]
[401390598,1768174251097,-208.15073839,0.00017973,2]
[401390599,1768174251107,-500.0,0.00017973,2]
[401390600,1768174251116,-182.86859792,0.00017973,2]
[401390601,1768174251126,-398.03125352,0.00017973,2]
[401390602,1768174251135,-500.0,0.00017973,2]
[401390603,1768174251146,-350.30037326,0.00017975,2]
[401390604,1768174251155,-300.0,0.00017975,2]
[401390605,1768174251165,-300.0,0.00017975,2]
[401390606,1768174251175,-666.0,0.00017975,2]
[401390607,1768174251184,-1010758.7198697,0.00017976,2]
[401390608,1768174251195,-151.0,0.00017976,2]
[401390609,1768174251204,-151.0,0.00017976,2]
[401390610,1768174251214,-151.0,0.00017976,2]
[401390611,1768174251223,-151.0,0.00017976,2]
[401390612,1768174251232,-183.540129,0.00017976,2]
[401390613,1768174251242,-151.0,0.00017976,2]
[401390614,1768174251252,-151.0,0.00017976,2]
[401390615,1768174251261,-151.0,0.00017976,2]
[401390616,1768174251271,-151.0,0.00017976,2]
[401390617,1768174251280,-151.0,0.00017976,2]
[401390618,1768174251290,-151.0,0.00017976,2]
[401390619,1768174251299,-170.438842,0.00017976,2]
[401390620,1768174251309,-170.438842,0.00017976,2]
[401390621,1768174251319,-170.438842,0.00017976,2]
[401390622,1768174251329,-170.438842,0.00017976,2]
[401390623,1768174251339,-151.0,0.00017976,2]
[401390624,1768174251349,-153.503221,0.00017976,2]
[401390625,1768174251358,-151.0,0.00017976,2]
[401390626,1768174251368,-151.0,0.00017976,2]
[401390627,1768174251378,-754.789807,0.00017976,2]
[401390628,1768174251388,-754.789807,0.00017976,2]
[401390629,1768174251398,-151.0,0.00017976,2]
[401390630,1768174251407,-754.789807,0.00017976,2]
[401390631,1768174251417,-754.789807,0.00017976,2]
[401390632,1768174251426,-151.0,0.00017976,2]
[401390633,1768174251436,-151.0,0.00017976,2]
[401390634,1768174251445,-151.0,0.00017976,2]
[401390635,1768174251455,-151.0,0.00017976,2]
[401390636,1768174251464,-1035.045953,0.00017976,2]
[401390637,1768174251474,-161.760933,0.00017976,2]
[401390638,1768174251483,-1035.045953,0.00017976,2]
[401390639,1768174251493,-194.799638,0.00017976,2]
[401390640,1768174251502,-206.837688,0.00017976,2]
[401390641,1768174251512,-1035.045953,0.00017976,2]
[401390642,1768174251525,-151.0,0.00017976,2]
[401390643,1768174251535,-194.799638,0.00017976,2]
[401390644,1768174251545,-206.837688,0.00017976,2]
[401390645,1768174251555,-1035.045953,0.00017976,2]
[401390646,1768174251566,-151.0,0.00017976,2]
[401390647,1768174251576,-206.837688,0.00017976,2]
[401390648,1768174251591,-194.799638,0.00017976,2]
[401390649,1768174251601,-151.0,0.00017976,2]
[401390650,1768174251612,-151.0,0.00017976,2]
[401390651,1768174251622,-194.799638,0.00017976,2]
[401390652,1768174251632,-206.837688,0.00017976,2]
[401390653,1768174251643,-811.260622,0.00017976,2]
[401390654,1768174251652,-811.260622,0.00017976,2]
[401390655,1768174251662,-811.260622,0.00017976,2]
[401390656,1768174251672,-811.260622,0.00017976,2]
[401390657,1768174251682,-151.0,0.00017976,2]
[401390658,1768174251692,-151.0,0.00017976,2]
[401390659,1768174251702,-151.0,0.00017976,2]
[401390660,1768174251713,-151.0,0.00017976,2]
[401390661,1768174251723,-151.0,0.00017976,2]
[401390662,1768174251733,-176.096172,0.00017976,2]
[401390663,1768174251743,-158.906118,0.00017976,2]
[401390664,1768174251753,-151.0,0.00017976,2]
[401390665,1768174251763,-151.0,0.00017976,2]
[401390666,1768174251773,-151.0,0.00017976,2]
[401390667,1768174251783,-151.0,0.00017976,2]
[401390668,1768174251794,-151.0,0.00017976,2]
[401390669,1768174251803,-151.0,0.00017976,2]
[401390670,1768174251813,-151.0,0.00017976,2]
[401390671,1768174251823,-151.0,0.00017976,2]
[401390672,1768174251833,-151.0,0.00017976,2]
[401390673,1768174251843,-151.0,0.00017976,2]
[401390674,1768174251853,-151.0,0.00017976,2]
[401390675,1768174251863,-155.382324,0.00017976,2]
[401390676,1768174251872,-151.0,0.00017976,2]
[401390677,1768174251882,-151.0,0.00017976,2]
[401390678,1768174251891,-151.0,0.00017976,2]
[401390679,1768174251902,-151.0,0.00017976,2]
[401390680,1768174251912,-151.000016,0.00017976,2]
[401390681,1768174251921,-151.0,0.00017976,2]
[401390682,1768174251932,-151.0,0.00017976,2]
[401390683,1768174251942,-154.753708,0.00017976,2]
[401390684,1768174251951,-151.0,0.00017976,2]
[401390685,1768174251961,-151.0,0.00017976,2]
[401390686,1768174251972,-151.0,0.00017976,2]
[401390687,1768174251981,-151.0,0.00017976,2]
[401390688,1768174251991,-151.0,0.00017976,2]
[401390689,1768174252001,-151.0,0.00017976,2]
[401390690,1768174252011,-151.0,0.00017976,2]
[401390691,1768174252020,-151.0,0.00017976,2]